bitfinex/quotes_ETHUSD_20260313
["timestamp","ask_amount","ask_price","bid_price","bid_amount"]
[1773388932063,0.49344992,2096.8,2096.4,0.0011]
[1773388932312,0.49344992,2096.6,2096.1,0.0011]
[1773388932584,0.49344992,2096.2,2095.5,0.47669479]
[1773388933157,0.49344992,2096.8,2095.5,0.47669479]
[1773388933356,1.19234988,2096.7,2095.7,0.47669479]
[1773388933891,1.19224888,2096.9,2095.9,0.47669479]
[1773388934187,3.70367845,2097.3,2095.9,0.47669479]
[1773388934390,0.53578049,2097.5,2096.8,0.47669479]
[1773388934391,0.47024449,2097.5,2096.8,0.47669479]
[1773388934559,1.66215717,2097.5,2096.9,0.47669479]
[1773388934753,1.66215717,2097.5,2097.0,1.7341]
[1773388935360,1.19206561,2097.2,2097.1,1.729]
[1773388936585,1.19206561,2097.2,2097.1,1.732]
[1773388936889,1.68551553,2097.2,2096.8,0.0011]
[1773388937181,1.68551553,2097.2,2096.9,1.73]
[1773388937587,1.19206561,2097.2,2096.9,1.73]
[1773388937789,4.76786793,2097.4,2096.9,1.73]
[1773388938085,4.76786793,2097.4,2096.8,0.0011]
[1773388938086,0.49344992,2097.3,2096.8,0.0011]
[1773388938289,0.49344992,2097.0,2096.5,0.0011]
[1773388938833,0.49344992,2097.2,2096.5,1.19356239]
[1773388939094,0.49344992,2097.2,2096.5,0.0011]
[1773388939568,0.49344992,2097.2,2096.5,1.19355762]
[1773388939765,1.19210764,2097.2,2096.6,1.96754685]
[1773388940258,4.76790107,2097.4,2096.7,0.25739373]
[1773388940259,1.19199654,2097.4,2096.7,0.25739373]
[1773388940660,1.88772311,2097.4,2096.7,0.25739373]
[1773388941759,1.88772311,2097.4,2096.8,1.19229301]
[1773388942385,0.69572657,2097.4,2096.8,1.19229301]
[1773388942595,0.47024449,2097.5,2096.8,1.19229301]
[1773388942889,0.37398303,2097.5,2096.8,1.19229301]
[1773388945095,0.37398303,2097.5,2096.7,1.21615619]
[1773388945096,0.69572657,2097.4,2096.7,1.21615619]
[1773388945296,0.69572657,2097.3,2096.8,1.745]
[1773388945484,0.69572657,2097.3,2096.6,1.19237244]
[1773388945485,0.69572657,2097.3,2096.9,1.745]
[1773388946590,1.88779218,2097.2,2096.9,1.745]
[1773388947786,0.69672657,2097.1,2096.9,1.745]
[1773388948601,0.69672657,2097.1,2096.7,0.0011]
[1773388948602,0.69572657,2097.0,2096.7,0.0011]
[1773388948808,0.69572657,2097.0,2096.8,1.749]
[1773388949167,0.69572657,2097.0,2096.7,0.0011]
[1773388949496,0.001,2097.1,2096.7,1.1934367]
[1773388950078,0.001,2097.1,2096.8,0.01806176]
[1773388950404,0.001,2097.1,2096.9,1.751]
[1773388953838,0.69572657,2097.0,2096.7,0.0011]
[1773388953979,0.69572657,2097.0,2096.5,0.0011]
[1773388954180,0.69572657,2096.7,2096.5,0.0011]
[1773388954499,0.69572657,2096.7,2096.2,0.0011]
[1773388954693,0.69517657,2096.4,2095.5,1.43297976]
[1773388954894,0.69517657,2096.4,2095.6,1.7571]
[1773388955806,0.69517657,2096.2,2095.6,1.7571]
[1773388956180,0.69517657,2096.2,2095.6,0.0011]
[1773388956412,0.69517657,2096.1,2095.7,1.757]
[1773388956910,0.69517657,2096.1,2095.8,0.0011]
[1773388958218,1.88792466,2096.0,2095.8,0.0011]
[1773388958393,1.88792466,2096.0,2095.7,1.757]
[1773388958592,1.88792466,2096.0,2095.8,0.0011]
[1773388959000,0.69517657,2095.9,2095.8,1.76]
[1773388959219,0.69517657,2095.9,2095.0,4.77326365]
[1773388959597,0.69517657,2095.9,2095.0,1.19331742]
[1773388960199,0.69517657,2095.9,2094.9,1.53859806]
[1773388960499,0.69517657,2095.7,2095.0,1.76]
[1773388960825,1.88793502,2096.0,2095.8,0.0011]
[1773388961125,1.88793502,2096.0,2095.9,1.761]
[1773388962329,0.69517657,2095.9,2095.5,0.0011]
[1773388962622,1.88801565,2095.9,2095.5,0.0011]
[1773388962806,1.19278181,2096.0,2095.5,0.0011]
[1773388963730,1.88795838,2096.0,2095.6,1.761]
[1773388965228,0.69517657,2095.9,2095.5,0.0011]
[1773388965394,0.69517657,2095.9,2095.7,1.761]
[1773388965823,1.19278181,2096.0,2095.7,1.761]
[1773388967525,1.90602029,2096.0,2095.7,1.761]
[1773388967699,0.69517657,2095.9,2095.7,1.761]
[1773388969550,1.19286191,2095.8,2095.5,0.0011]
[1773388970013,0.69517657,2095.7,2095.5,0.0011]
[1773388970830,0.69517657,2095.7,2095.6,1.758]
[1773388971248,0.69517657,2095.7,2095.5,0.0011]
[1773388972445,1.19286191,2095.8,2095.5,0.0011]
[1773388972733,1.19286191,2095.8,2095.6,1.757]
[1773388973312,0.69517657,2096.2,2095.7,0.04771675]
[1773388973615,0.71323848,2096.2,2095.7,0.04771675]
[1773388974341,0.69517657,2096.6,2095.6,1.7581]
[1773388974506,0.69517657,2096.4,2095.7,1.19291883]
[1773388976431,1.19257739,2096.3,2095.7,1.19291883]
[1773388976842,0.69517657,2096.4,2095.7,1.19291883]
[1773388977023,1.88770303,2096.4,2095.8,0.04771447]
[1773388978524,1.88781086,2096.2,2095.8,1.19285213]
[1773388978725,1.19262026,2096.3,2095.8,1.19285213]
[1773388978931,1.19248802,2096.5,2095.8,1.2405666]
[1773388979506,0.69517657,2096.6,2095.8,1.2405666]
[1773388979733,1.19237414,2096.7,2095.8,1.2405666]
[1773388980435,1.88755071,2096.7,2095.8,1.19285213]
[1773388980730,1.88755071,2096.7,2095.7,4.77165679]
[1773388980731,0.69517657,2096.6,2095.7,4.77165679]
[1773388981304,0.69517657,2096.6,2095.8,1.751]
[1773388982141,0.69517657,2096.6,2095.6,2.7660336]
[1773388982326,0.69517657,2096.6,2095.7,1.751]
[1773388982327,0.69517657,2096.5,2095.7,1.751]
[1773388982528,0.69517657,2096.3,2095.7,1.751]
[1773388982730,0.69517657,2096.3,2095.6,0.0011]
[1773388982938,0.69517657,2096.3,2095.7,1.751]
[1773388983127,0.69517657,2096.3,2095.6,0.0011]
[1773388983810,0.69517657,2096.2,2095.6,0.0011]
[1773388984418,0.69517657,2096.2,2095.7,1.751]
[1773388984946,0.69517657,2096.0,2095.7,1.751]
[1773388985146,0.69517657,2096.0,2095.6,0.0011]
[1773388986243,0.69617657,2096.0,2095.6,0.0011]
[1773388986449,0.69617657,2096.0,2095.7,1.751]
[1773388986948,1.192805,2095.9,2095.7,1.751]
[1773388987146,0.69462657,2095.8,2095.5,0.0011]
[1773388988553,0.69462657,2095.8,2095.6,1.75]
[1773388988732,1.192805,2095.9,2095.6,1.75]
[1773388988916,0.69462657,2095.9,2095.6,1.75]
[1773388989122,0.69462657,2095.9,2095.5,0.0011]
[1773388990759,0.69462657,2095.9,2095.6,1.749]
[1773388991053,1.19286191,2095.8,2095.7,1.749]
[1773388991223,1.88748848,2095.8,2095.7,1.749]
[1773388992252,0.69462657,2095.8,2095.7,1.749]
[1773388992444,0.69462657,2095.8,2095.5,0.0011]
[1773388992648,0.69462657,2095.8,2095.4,0.0011]
[1773388993160,0.69407657,2095.6,2095.4,0.0011]
[1773388993860,1.88696116,2095.8,2095.4,0.0011]
[1773388994239,1.192805,2095.9,2095.5,1.748]
[1773388994436,0.69407657,2095.6,2094.9,1.53864008]
[1773388994829,0.69407657,2095.6,2095.0,2.02357658]
[1773388995030,0.69407657,2095.6,2095.1,1.19326046]
[1773388995242,4.77140704,2095.9,2095.1,1.19326046]
[1773388995243,0.69407657,2095.8,2095.1,1.19326046]
[1773388995949,0.69407657,2095.8,2094.9,1.53862796]
[1773388996161,0.69407657,2095.8,2095.0,1.747]
[1773388996546,0.69407657,2095.7,2094.9,0.34526931]
[1773388996867,0.69407657,2095.7,2095.0,1.747]
[1773388997274,0.69407657,2095.7,2094.9,0.34526931]
[1773388997275,2.02357658,2095.5,2094.9,0.34526931]
[1773388997460,0.69407657,2095.4,2094.4,1.19361954]
[1773388997769,0.69407657,2095.4,2094.4,1.19362485]
[1773388997969,0.69407657,2095.4,2095.3,0.0011]
[1773388998267,0.69407657,2095.4,2094.4,1.19362485]
[1773388998439,0.69407657,2095.4,2095.0,0.0011]
[1773388998636,0.69407657,2095.2,2094.1,3.90879249]
[1773388999075,0.69407657,2095.2,2094.1,2.71501299]
[1773388999245,0.69352657,2095.0,2094.1,2.71501299]
[1773388999442,0.69352657,2095.0,2094.2,1.746]
[1773389001351,1.88685294,2095.0,2094.3,1.19371627]
[1773389001545,0.69352657,2094.9,2094.3,1.19371627]
[1773389002054,0.69352657,2094.9,2094.2,2.93973032]
[1773389002448,0.69352657,2094.9,2094.3,1.744]
[1773389003272,1.88690821,2094.9,2094.4,1.19365928]
[1773389003693,4.77305032,2095.1,2094.4,1.19365928]
[1773389003694,1.88681261,2095.1,2094.4,1.19365928]
[1773389004680,0.69352657,2095.1,2094.4,1.19365928]
[1773389004892,0.69352657,2095.1,2094.5,0.04774409]
[1773389005393,0.69352657,2095.1,2094.5,1.24131236]
[1773389005394,1.88684399,2095.0,2094.5,1.24131236]
[1773389007056,1.88684399,2095.0,2094.6,1.743]
[1773389007863,0.69352657,2094.9,2094.7,0.04773953]
[1773389008049,0.69352657,2094.9,2094.2,2.76573381]
[1773389008245,0.69352657,2094.9,2094.0,0.23536596]
[1773389008246,0.69352657,2094.9,2094.0,1.42921174]
[1773389008656,0.69352657,2094.9,2093.6,0.41438307]
[1773389008657,0.69352657,2094.9,2093.6,1.19411539]
[1773389008991,0.69352657,2094.7,2093.6,1.19411539]
[1773389009493,0.69352657,2094.7,2093.7,1.742]
[1773389010065,0.69352657,2094.5,2093.8,1.19400133]
[1773389010969,0.69352657,2094.5,2094.3,0.0011]
[1773389011170,0.69352657,2094.5,2093.8,1.19400133]
[1773389011488,1.88788448,2095.0,2094.3,2.02357658]
[1773389011778,1.88675963,2095.2,2094.4,0.47763314]
[1773389012158,1.88675963,2095.2,2094.5,1.19360229]
[1773389012353,0.46805839,2095.7,2094.7,0.30647342]
[1773389012585,1.70864834,2095.9,2095.0,0.30647342]
[1773389012789,0.31922428,2096.0,2095.6,0.25873383]
[1773389013080,0.31922428,2096.0,2095.7,1.99973383]
[1773389013286,0.31922428,2096.0,2095.7,1.741]
[1773389013683,0.31922428,2096.0,2095.5,1.572]
[1773389013931,0.31922428,2096.0,2095.8,1.741]
[1773389014672,0.31922428,2096.0,2095.5,2.7650045]
[1773389014983,1.51197704,2096.0,2095.6,1.742]
[1773389015193,1.51197704,2096.0,2095.4,1.83073383]
[1773389015493,1.51197704,2096.0,2095.7,1.742]
[1773389015690,0.31922428,2096.0,2095.7,1.742]
[1773389016194,1.5119756,2096.0,2095.7,1.742]
[1773389016362,1.98003399,2096.0,2095.3,2.76710493]
[1773389016557,1.98003399,2096.0,2095.3,1.574]
[1773389016761,0.46805839,2095.9,2095.2,1.45193679]
[1773389017765,0.46805839,2095.9,2095.3,1.742]
[1773389018177,1.19286191,2095.8,2095.3,2.93511492]
[1773389018503,1.66090255,2095.9,2095.3,2.93511492]
[1773389019095,1.66090255,2095.9,2095.4,1.742]
[1773389020286,1.66090255,2095.9,2095.4,2.9350586]
[1773389020905,1.51197359,2096.0,2095.4,3.19379243]
[1773389021497,0.31922428,2096.0,2095.4,5.00635876]
[1773389021685,0.31922428,2096.0,2095.5,0.25873383]
[1773389022802,0.31922428,2096.0,2095.5,1.45172382]
[1773389023215,1.66040827,2096.7,2095.8,0.25873383]
[1773389024067,1.19234988,2096.7,2096.1,0.48215628]
[1773389024306,1.19331338,2096.8,2096.2,2.22615628]
[1773389024671,0.001,2096.8,2096.3,0.48215628]
[1773389025892,0.001,2096.8,2096.0,1.67485686]
[1773389026070,0.001,2096.8,2096.1,2.22615628]
[1773389026378,0.001,2096.8,2096.2,0.48215628]
[1773389026580,1.19329301,2096.8,2096.2,0.48215628]
[1773389029488,0.48740564,2096.7,2096.1,1.744]
[1773389029675,0.48740564,2096.7,2096.0,1.19274745]
[1773389029997,1.19329301,2096.8,2096.2,0.48215628]
[1773389030200,0.001,2096.8,2096.2,0.48215628]
[1773389030774,0.001,2096.8,2096.3,0.46169636]
[1773389031098,0.49004846,2096.8,2096.4,1.743]
[1773389031281,0.49004846,2096.8,2095.9,0.46169636]
[1773389031802,0.001,2096.8,2095.9,0.46169636]
[1773389032404,0.001,2096.8,2096.0,1.743]
[1773389032602,0.001,2096.8,2096.1,0.46169636]
[1773389032809,0.001,2096.8,2096.2,0.46169636]
[1773389032979,0.001,2096.8,2096.2,0.50940173]
[1773389034908,0.001,2096.8,2096.3,1.19257739]
[1773389035118,0.001,2096.8,2096.4,0.50939717]
[1773389035487,0.001,2096.8,2095.9,4.77107243]
[1773389035686,0.49004846,2096.8,2096.1,0.46169636]
[1773389036449,0.49004846,2096.8,2095.9,0.46169636]
[1773389036582,0.48904846,2096.5,2096.0,1.53192603]
[1773389036783,0.48904846,2096.5,2095.5,0.46169636]
[1773389037024,0.48904846,2096.3,2095.5,0.46169636]
[1773389037206,0.48904846,2096.2,2095.7,1.741]
[1773389037404,0.48904846,2096.2,2095.7,1.6649544]
[1773389037582,0.48904846,2096.2,2096.0,0.0011]
[1773389038009,0.48904846,2096.2,2095.6,0.0003]
[1773389038298,0.48904846,2095.9,2095.6,0.0003]
[1773389038990,1.19286191,2095.8,2095.6,0.0003]
[1773389039416,1.19286191,2095.8,2095.6,1.7403]
[1773389039803,1.6818781,2095.9,2095.6,1.7403]
[1773389040194,1.6818781,2095.9,2095.4,1.7411]
[1773389041317,0.48904846,2095.8,2095.4,0.0011]
[1773389041621,0.48904846,2095.8,2095.1,1.7411]
[1773389041622,0.48904846,2095.7,2095.1,1.7411]
[1773389042209,0.48904846,2095.7,2095.1,1.74]
[1773389042810,0.48904846,2095.8,2095.1,1.74]
[1773389043214,1.68196729,2095.7,2095.1,1.74]
[1773389043618,0.48904846,2095.6,2095.1,1.74]
[1773389045209,1.19303268,2095.5,2095.1,1.74]
[1773389045611,1.19303268,2095.5,2095.1,1.7411]
[1773389045998,0.31900135,2096.7,2095.4,0.46279636]
[1773389045999,4.77116275,2096.0,2095.4,0.46279636]
[1773389046204,1.19263429,2096.2,2095.4,0.46169636]
[1773389046633,1.19263429,2096.2,2095.6,0.46169636]
[1773389047018,1.19263429,2096.2,2095.8,0.46279636]
[1773389047222,1.19263429,2096.2,2095.9,1.742]
[1773389047418,5.25890656,2096.5,2095.9,1.742]
[1773389048639,0.48904846,2096.4,2095.9,1.742]
[1773389048841,0.48904846,2096.4,2095.5,0.46169636]
[1773389049019,0.48904846,2096.4,2095.5,2.20369636]
[1773389049220,0.48904846,2096.4,2095.5,1.742]
[1773389049520,1.19257739,2096.3,2095.6,0.46169636]
[1773389049708,1.19257739,2096.3,2095.3,0.46169636]
[1773389049911,0.48904846,2096.2,2095.4,1.742]
[1773389050126,0.48904846,2096.2,2095.5,0.46169636]
[1773389050442,1.19257739,2096.3,2095.6,0.51051539]
[1773389050443,1.19357739,2096.3,2095.6,0.51051539]
[1773389050907,1.19357739,2096.3,2095.6,0.50941539]
[1773389051104,0.001,2096.3,2095.8,0.46169636]
[1773389051542,0.001,2096.3,2096.1,0.0011]
[1773389052038,0.001,2096.3,2096.2,0.0011]
[1773389052220,1.19340675,2096.6,2096.2,0.0011]
[1773389052542,0.001,2096.6,2096.2,0.46169636]
[1773389052838,0.22567027,2096.7,2096.2,0.46169636]
[1773389053009,0.22567027,2096.7,2096.5,0.0011]
[1773389053208,0.22567027,2096.7,2096.2,0.46169636]
[1773389053421,1.41804453,2096.7,2096.2,0.46169636]
[1773389053615,0.22567027,2096.7,2096.5,0.0011]
[1773389053836,0.22567027,2096.7,2096.3,0.46169636]
[1773389054025,0.22567027,2096.7,2096.5,0.0011]
[1773389054431,0.22567027,2096.7,2096.3,0.46169636]
[1773389054632,0.22567027,2096.7,2096.5,0.0011]
[1773389054929,0.22567027,2096.7,2096.3,0.46169636]
[1773389055127,0.22567027,2096.7,2096.5,0.0011]
[1773389055516,0.22567027,2096.7,2096.6,0.46279636]
[1773389055916,0.001,2097.1,2096.6,0.46169636]
[1773389056122,1.19312946,2097.1,2096.6,0.46169636]
[1773389056341,0.001,2097.1,2096.6,0.46169636]
[1773389056535,1.19312838,2097.1,2096.6,0.46169636]
[1773389056924,0.001,2097.1,2096.6,0.46169636]
[1773389057125,1.19314801,2097.1,2096.6,0.46169636]
[1773389057322,0.001,2097.1,2096.6,0.46169636]
[1773389057513,0.001,2097.1,2096.2,4.63995397]
[1773389057514,0.001,2097.1,2096.8,0.46169636]
[1773389057717,0.001,2097.8,2097.0,0.46169636]
[1773389057718,1.68082993,2097.7,2097.0,0.46169636]
[1773389057931,1.68082993,2097.7,2096.7,0.42988677]
[1773389057932,0.48904846,2097.4,2096.7,0.42988677]
[1773389058246,0.48904846,2097.1,2096.5,1.739]
[1773389058620,0.48904846,2097.5,2096.5,2.20069636]
[1773389059245,0.48904846,2097.5,2096.5,0.46169636]
[1773389059448,0.48904846,2097.5,2096.6,1.736]
[1773389060150,0.48904846,2097.3,2096.6,1.736]
[1773389061541,1.19195194,2097.4,2096.6,1.736]
[1773389061542,1.19195194,2097.4,2096.7,0.828508]
[1773389062050,5.61046185,2097.5,2096.6,1.736]
[1773389062051,1.19212245,2097.1,2096.6,1.736]
[1773389062836,1.19195194,2097.4,2096.7,0.828508]
[1773389063150,2.03460603,2097.4,2096.7,0.6544755]
[1773389063459,0.84265409,2096.8,2096.1,0.828508]
[1773389063747,0.84265409,2096.8,2096.2,0.0011]
[1773389064247,1.19234988,2096.7,2096.1,0.828508]
[1773389064447,1.19234988,2096.7,2096.2,0.04770537]
[1773389065429,1.19234988,2096.7,2096.2,1.78370537]
[1773389066358,4.76939953,2097.1,2096.2,1.78370537]
[1773389066359,4.7688261,2097.0,2096.2,3.80484383]
[1773389066953,5.61148019,2097.0,2096.2,2.564508]
[1773389067150,4.7688261,2097.0,2096.2,2.564508]
[1773389067451,0.84265409,2096.9,2096.2,1.736]
[1773389068157,2.0349471,2096.8,2096.2,1.736]
[1773389068344,0.84265409,2096.7,2096.2,1.736]
[1773389068949,1.19229301,2096.8,2096.3,0.04770309]
[1773389069840,1.19229301,2096.8,2096.2,1.736]
[1773389070035,2.0349471,2096.8,2095.8,3.21513427]
[1773389070242,2.0349471,2096.8,2095.9,3.75731032]
[1773389070243,0.84265409,2096.5,2095.9,3.75731032]
[1773389070448,0.84265409,2096.5,2095.9,1.736]
[1773389070962,0.84265409,2096.5,2095.9,2.92879719]
[1773389072168,1.19252051,2096.4,2095.9,2.92879719]
[1773389073569,1.19251013,2096.5,2096.0,0.828508]
[1773389073788,1.19242778,2096.6,2096.0,0.828508]
[1773389073936,1.19242778,2096.6,2096.1,0.04770764]
[1773389074141,1.19242778,2096.6,2096.1,0.87621564]
[1773389074339,4.7695591,2096.7,2096.1,0.87621564]
[1773389074545,4.7695591,2096.7,2096.1,2.06887817]
[1773389074869,0.84265409,2096.6,2095.9,3.75727368]
[1773389075242,2.03490916,2096.9,2096.0,0.87621792]
[1773389076358,2.03490916,2096.9,2096.3,0.0011]
[1773389076563,2.03490916,2096.9,2096.3,1.24134399]
[1773389076767,2.03490916,2096.9,2096.3,2.0221489]
[1773389078060,2.0348122,2097.1,2096.4,0.828508]
[1773389078260,2.03468434,2097.3,2096.5,2.565508]
[1773389078470,0.84265409,2097.3,2096.6,2.02091475]
[1773389078669,1.19298876,2097.4,2096.7,0.828508]
[1773389078670,1.19298217,2097.4,2096.7,0.828508]
[1773389079071,0.84265409,2097.3,2096.6,1.19240675]
[1773389080055,0.84265409,2097.3,2096.3,1.1936595]
[1773389080546,0.84265409,2097.1,2096.3,0.0011]
[1773389080872,0.84265409,2097.1,2096.3,0.829608]
[1773389081373,0.84265409,2097.1,2096.4,1.737]
[1773389081680,0.84265409,2097.1,2096.5,1.737]
[1773389081681,0.84265409,2097.0,2096.5,1.737]
[1773389082267,0.84265409,2097.0,2096.3,0.0011]
[1773389082644,0.84265409,2096.8,2096.3,0.0011]
[1773389083182,2.03482127,2097.1,2096.3,0.829608]
[1773389083475,2.03482127,2097.1,2096.4,2.61320882]
[1773389085066,2.03482127,2097.1,2096.4,3.75799895]
[1773389085773,1.19216718,2097.1,2096.5,0.82081413]
[1773389086751,1.19216718,2097.1,2096.6,1.736]
[1773389087573,4.76848981,2097.2,2096.6,1.736]
[1773389088887,0.001,2096.9,2096.6,1.736]
[1773389090883,0.001,2096.9,2096.7,1.735]
[1773389091086,0.88151372,2096.9,2096.3,0.81237615]
[1773389091982,1.19229301,2096.8,2096.3,0.81237615]
[1773389092202,1.19229301,2096.8,2096.3,2.00494579]
[1773389092493,1.19229301,2096.8,2096.4,1.735]
[1773389094576,0.88051372,2097.3,2096.4,1.735]
[1773389094797,1.19180777,2097.7,2097.0,0.81127615]
[1773389095093,1.19180777,2097.7,2097.1,2.54527615]
[1773389095258,0.88051372,2097.6,2097.2,1.734]
[1773389095458,0.88051372,2097.6,2097.3,1.734]
[1773389095858,1.19180777,2097.7,2097.3,1.734]
[1773389096524,5.64854119,2097.8,2097.3,1.734]
[1773389098073,0.88051372,2098.0,2097.3,2.92597038]
[1773389098390,1.51385824,2098.2,2097.5,0.81127615]
[1773389098594,0.32235868,2098.2,2097.7,0.81127615]
[1773389098794,2.39438054,2098.2,2097.5,2.00312571]
[1773389098956,2.39438054,2098.2,2097.5,0.81127615]
[1773389100718,2.02180665,2098.0,2096.9,3.40465124]
[1773389100868,0.88151372,2097.6,2096.9,2.00348502]
[1773389101069,0.88151372,2097.6,2096.4,1.1924889]
[1773389101306,0.88051372,2097.3,2096.3,2.00494906]
[1773389102604,2.07257933,2097.2,2096.4,2.92549545]
[1773389102980,0.88051372,2097.1,2096.4,1.733]
[1773389104102,0.88051372,2097.0,2096.3,0.0011]
[1773389104997,0.88051372,2096.7,2096.3,0.0011]
[1773389105199,0.88051372,2096.7,2096.0,0.0011]
[1773389105374,0.88051372,2096.7,2096.0,1.7341]
[1773389106302,0.88051372,2096.7,2095.8,0.0011]
[1773389107608,0.88051372,2096.5,2095.9,1.733]
[1773389108034,1.19240675,2096.6,2096.0,0.04770992]
[1773389109625,5.65014073,2096.7,2096.0,0.04770992]
[1773389111739,5.65014073,2096.7,2096.0,2.05173227]
[1773389112035,5.65014073,2096.7,2096.0,0.04770992]
[1773389112223,0.88051372,2096.6,2095.9,2.92580354]
[1773389112410,0.88051372,2096.6,2096.0,0.04770992]
[1773389113317,0.88051372,2096.6,2095.9,2.92580354]
[1773389113515,0.88051372,2096.5,2095.8,0.0011]
[1773389113729,2.07303423,2096.4,2095.9,1.732]
[1773389114058,2.07303423,2096.4,2096.0,0.0011]
[1773389118624,0.88051372,2096.3,2096.0,0.0011]
[1773389119026,0.88051372,2096.3,2095.8,0.0011]
[1773389119218,0.88051372,2096.3,2095.4,1.19306552]
[1773389119621,0.88051372,2096.3,2095.4,2.00434167]
[1773389120321,0.88051372,2096.3,2095.5,1.73]
[1773389120947,1.19263429,2096.2,2095.5,1.73]
[1773389121249,2.00241803,2096.2,2095.5,1.73]
[1773389121848,2.00241803,2096.2,2095.5,2.92303203]
[1773389122551,2.00241803,2096.2,2095.5,1.73]
[1773389122748,0.80978374,2096.1,2095.5,1.73]
[1773389122952,1.19263429,2096.2,2095.5,1.73]
[1773389122953,0.80978374,2096.0,2095.5,1.73]
[1773389123137,2.00258874,2095.9,2095.5,1.73]
[1773389123528,0.80978374,2095.8,2095.3,0.0011]
[1773389123755,0.80978374,2095.8,2095.4,1.728]
[1773389124135,0.80978374,2095.8,2095.3,0.0011]
[1773389124332,0.80978374,2095.6,2095.0,0.0011]
[1773389124756,1.192805,2095.9,2095.0,0.0011]
[1773389124757,2.00258874,2095.9,2095.0,0.87334838]
[1773389124963,2.00258874,2095.9,2095.1,0.87224838]
[1773389125155,2.00258874,2095.9,2095.1,2.06547259]
[1773389125329,0.80978374,2095.8,2095.2,1.728]
[1773389126262,0.80978374,2095.8,2095.3,0.04772586]
[1773389126756,1.192805,2095.9,2095.2,2.60024838]
[1773389127060,1.192805,2095.9,2095.7,0.0011]
[1773389132460,2.00347492,2096.1,2095.7,0.0011]
[1773389133761,0.80978374,2096.0,2095.7,0.0011]
[1773389133948,0.80978374,2095.6,2095.5,0.0011]
[1773389134149,0.80978374,2095.6,2095.2,0.0011]
[1773389134349,1.19303268,2095.5,2095.2,0.0011]
[1773389135371,2.00281642,2095.5,2095.0,0.0011]
[1773389136052,0.80978374,2095.4,2095.0,0.0011]
[1773389136574,2.0029303,2095.3,2095.1,3.84]
[1773389136763,2.0029303,2095.3,2095.0,0.0011]
[1773389137356,0.80978374,2095.2,2095.0,0.0011]
[1773389138565,1.19326046,2095.1,2095.0,0.0011]
[1773389139883,1.19326046,2095.1,2094.8,0.0011]
[1773389140260,0.80978374,2095.0,2094.3,0.87224838]
[1773389140460,4.77404185,2095.4,2094.7,0.87334838]
[1773389140461,1.19411838,2095.4,2094.7,0.87334838]
[1773389140766,1.19411838,2095.4,2094.9,0.87224838]
[1773389140974,2.02180665,2095.7,2095.0,0.91998107]
[1773389140975,1.19297575,2095.6,2095.0,0.91998107]
[1773389141159,1.19297575,2095.6,2095.1,1.72]
[1773389141478,1.19286191,2095.8,2095.2,0.91997651]
[1773389142272,0.81078374,2096.1,2095.2,0.91997651]
[1773389142450,1.19279637,2096.0,2095.2,0.87224838]
[1773389142781,1.19279637,2096.0,2095.4,0.87224838]
[1773389143257,0.80978374,2095.9,2095.3,1.72]
[1773389143851,0.80978374,2095.9,2095.3,2.59224838]
[1773389144088,1.19279637,2096.0,2095.4,0.87224838]
[1773389144373,1.97745102,2096.0,2095.3,1.72]
[1773389144753,1.97745102,2096.0,2095.3,2.55155573]
[1773389147072,1.97745102,2096.0,2095.4,0.83155573]
[1773389147891,1.19279637,2096.0,2095.4,0.83155573]
[1773389148593,0.001,2096.1,2095.4,0.83155573]
[1773389148797,2.08734265,2096.8,2095.8,0.83155573]
[1773389148798,2.02180665,2096.8,2095.8,0.83155573]
[1773389149133,2.02180665,2096.8,2095.9,0.83155573]
[1773389149134,1.19245042,2096.6,2095.9,0.83155573]
[1773389149296,1.19245042,2096.6,2096.1,0.83155573]
[1773389149671,1.19245042,2096.6,2095.6,0.83155573]
[1773389149672,0.78465465,2096.5,2095.6,0.83155573]
[1773389149885,0.78465465,2096.5,2095.7,1.716]
[1773389150071,0.78465465,2096.5,2095.8,0.83155573]
[1773389150279,1.19245042,2096.6,2095.8,0.83155573]
[1773389150975,1.19245042,2096.6,2096.0,0.7974421]
[1773389152768,1.19245042,2096.6,2096.1,0.0011]
[1773389152972,0.001,2096.4,2096.1,0.0011]
[1773389156998,0.81870079,2096.4,2096.1,1.7151]
[1773389157195,0.81870079,2096.4,2095.9,0.0011]
[1773389158269,1.19257739,2096.3,2095.9,0.0011]
[1773389158601,2.01027818,2096.3,2095.9,0.0011]
[1773389159501,1.19257739,2096.3,2095.9,0.7985421]
[1773389159797,1.19352966,2096.4,2096.0,0.7974421]
[1773389160005,0.001,2096.4,2096.0,0.7974421]
[1773389160177,1.19353289,2096.4,2096.0,0.7974421]
[1773389160373,1.19353289,2096.4,2096.1,0.8331206]
[1773389160374,0.001,2096.4,2096.1,0.8331206]
[1773389162204,0.001,2096.4,2095.9,0.0011]
[1773389162403,1.19352051,2096.4,2095.9,1.99134641]
[1773389162610,1.19352051,2096.4,2095.9,1.99134311]
[1773389162790,1.19352051,2096.4,2095.9,0.7985421]
[1773389162986,2.0112213,2096.4,2096.0,1.712]
[1773389163385,4.76939953,2096.9,2096.2,0.7974421]
[1773389163386,5.58683436,2096.9,2096.2,0.7974421]
[1773389163588,2.0097664,2097.2,2096.3,0.7974421]
[1773389163780,2.0097664,2097.2,2096.1,0.7974421]
[1773389163781,0.81770079,2097.1,2096.1,0.7974421]
[1773389163981,0.81770079,2096.9,2096.1,0.7974421]
[1773389164197,0.81770079,2096.9,2096.2,1.712]
[1773389164591,1.19229301,2096.8,2096.2,1.712]
[1773389165111,0.81770079,2096.7,2096.1,0.7974421]
[1773389165291,0.81770079,2096.6,2096.1,1.712]
[1773389165613,0.81770079,2096.6,2096.1,1.7131]
[1773389166016,0.81770079,2096.6,2096.1,0.0011]
[1773389167007,2.01016441,2096.5,2096.1,0.0011]
[1773389167512,0.81770079,2096.4,2096.1,0.0011]
[1773389168079,0.81770079,2096.4,2095.9,0.0011]
[1773389168484,0.81770079,2096.1,2095.7,1.713]
[1773389169002,1.19257739,2096.3,2095.7,1.713]
[1773389169185,2.01027818,2096.3,2095.7,1.713]
[1773389169901,0.81770079,2096.2,2095.7,1.713]
[1773389171202,1.19269118,2096.1,2095.7,1.713]
[1773389171521,0.81770079,2096.2,2095.7,2.90591226]
[1773389171720,2.0103689,2096.2,2095.7,1.713]
[1773389172425,1.19266811,2096.2,2095.7,3.70335855]
[1773389172597,1.19266811,2096.2,2095.7,2.5104421]
[1773389173712,0.81770079,2096.3,2095.7,2.5104421]